bitfinex-derivatives/quotes_SOLF0:USTF0_20250623
["timestamp","ask_amount","ask_price","bid_price","bid_amount"]
[1750685041014,8.09526785,134.3,134.25,40.1094]
[1750685041214,8.09526785,134.3,134.25,2.3294]
[1750685041414,7.4448,134.28,134.26,7.4456]
[1750685041709,8.09526785,134.3,134.24,8.09526785]
[1750685042710,8.09526785,134.28,134.23,2.3111]
[1750685042911,8.09526785,134.28,134.22,45.87526785]
[1750685043112,7.4463,134.25,134.23,7.447]
[1750685044021,7.4463,134.25,134.22,45.87526785]
[1750685044022,8.09526785,134.26,134.22,7.4476]
[1750685044317,8.09526785,134.24,134.18,8.09526785]
[1750685045016,7.4482,134.22,134.19,7.4493]
[1750685046018,7.4482,134.22,134.2,7.4488]
[1750685046212,7.4476,134.23,134.2,7.4488]
[1750685046517,8.09526785,134.24,134.21,7.4483]
[1750685046717,8.09526785,134.26,134.19,8.09526785]
[1750685047213,8.09526785,134.24,134.2,7.4486]
[1750685047414,7.4473,134.23,134.2,7.4486]
[1750685047620,7.4473,134.23,134.2,7.4489]
[1750685049019,7.4479,134.22,134.19,7.4495]
[1750685050414,40.1885,134.27,134.18,8.09526785]
[1750685050720,45.87526785,134.27,134.2,15.04288303]
[1750685051022,37.78,134.27,134.21,44.74761518]
[1750685051221,37.78,134.27,134.22,2.4072]
[1750685051421,7.446,134.26,134.22,2.4072]
[1750685052718,7.446,134.26,134.23,7.4472]
[1750685054320,7.4462,134.25,134.23,7.4472]
[1750685054621,45.87526785,134.27,134.24,7.4467]
[1750685054819,37.78,134.27,134.23,8.09526785]
[1750685055015,37.78,134.27,134.24,7.4466]
[1750685055321,45.2254,134.27,134.24,7.4466]
[1750685055822,7.4457,134.26,134.24,7.4466]
[1750685056326,37.78,134.27,134.24,7.4466]
[1750685056521,45.2256,134.27,134.24,7.4466]
[1750685057720,7.4457,134.26,134.24,7.4466]
[1750685058319,7.4457,134.26,134.23,8.09526785]
[1750685058521,7.4457,134.26,134.23,7.4471]
[1750685058819,45.87526785,134.27,134.23,7.4471]
[1750685059225,7.4461,134.26,134.23,7.4471]
[1750685059414,45.87526785,134.27,134.23,7.4471]
[1750685059725,7.4457,134.26,134.23,7.4471]
[1750685061124,7.4463,134.25,134.23,7.4471]
[1750685062423,7.4467,134.24,134.22,7.4476]
[1750685063129,7.4465,134.25,134.22,7.4476]
[1750685064532,45.87526785,134.27,134.22,7.4476]
[1750685065630,45.87526785,134.27,134.23,7.4473]
[1750685066426,37.78,134.27,134.24,7.4467]
[1750685066924,7.4459,134.26,134.24,7.4467]
[1750685068331,7.4463,134.25,134.23,7.447]
[1750685069738,7.447,134.24,134.22,15.54276785]
[1750685070230,45.87526785,134.27,134.22,8.09526785]
[1750685070437,7.4473,134.23,134.21,9.8228]
[1750685070736,8.09526785,134.25,134.2,2.3521]
[1750685071036,7.4477,134.23,134.2,9.8007]
[1750685071438,8.09526785,134.25,134.2,9.8007]
[1750685071633,7.4481,134.22,134.2,9.8007]
[1750685072638,7.4476,134.23,134.21,7.4484]
[1750685072839,37.78,134.27,134.2,2.3521]
[1750685073143,8.09526785,134.26,134.2,2.3521]
[1750685073438,7.4477,134.23,134.2,2.3521]
[1750685073638,8.09526785,134.25,134.18,17.55088303]
[1750685073834,7.4478,134.23,134.2,7.4487]
[1750685074543,7.447,134.24,134.18,17.55088303]
[1750685074744,45.87526785,134.27,134.2,8.09526785]
[1750685075342,8.09526785,134.25,134.2,8.09526785]
[1750685075946,7.4474,134.23,134.21,7.4482]
[1750685077840,7.447,134.24,134.21,7.4482]
[1750685078344,7.4473,134.23,134.21,7.4482]
[1750685081647,7.4473,134.23,134.2,14.39631518]
[1750685081948,7.448,134.22,134.2,14.39631518]
[1750685082845,2.4336,134.29,134.19,8.09526785]
[1750685082846,7.4484,134.21,134.19,6.94761518]
[1750685083150,45.89526785,134.23,134.19,6.94761518]
[1750685083151,45.93526785,134.23,134.19,6.94761518]
[1750685083348,7.449,134.2,134.19,6.94761518]
[1750685083545,8.09526785,134.21,134.18,6.94761518]
[1750685083741,37.84,134.23,134.17,6.94761518]
[1750685083742,8.09526785,134.19,134.17,6.94761518]
[1750685084049,7.4501,134.18,134.17,6.94761518]
[1750685084439,7.4508,134.17,134.16,8.95174428]
[1750685084645,8.09526785,134.17,134.15,4.428e-05]
[1750685084949,45.93526785,134.19,134.07,2.3057]
[1750685084950,8.09526785,134.16,134.07,2.3057]
[1750685085141,8.09526785,134.12,134.07,2.3057]
[1750685085341,7.4554,134.09,134.07,2.3057]
[1750685085552,8.09526785,134.12,134.07,2.3057]
[1750685085849,37.84,134.11,134.06,20.36276785]
[1750685086053,7.4548,134.1,134.06,12.2675]
[1750685086349,37.84,134.11,134.07,7.4561]
[1750685086648,45.2943,134.11,134.07,8.09526785]
[1750685086851,53.38956785,134.11,134.07,7.4559]
[1750685087249,7.4546,134.1,134.07,7.4559]
[1750685087952,53.38936785,134.11,134.06,4.811]
[1750685088249,37.84,134.11,134.06,4.811]
[1750685088450,37.84,134.11,134.08,8.09526785]
[1750685088651,45.3126,134.14,134.1,7.4545]
[1750685089056,45.3126,134.14,134.11,7.4536]
[1750685089353,37.86,134.14,134.08,8.09526785]
[1750685089952,37.86,134.14,134.12,7.4531]
[1750685090851,37.86,134.14,134.08,8.09526785]
[1750685091454,37.86,134.14,134.12,7.4532]
[1750685091850,37.86,134.14,134.08,8.09526785]
[1750685092053,45.95526785,134.14,134.08,8.09526785]
[1750685092253,45.95526785,134.14,134.07,2.35]
[1750685092453,45.95526785,134.14,134.08,8.09526785]
[1750685092753,53.40796785,134.14,134.11,7.4538]
[1750685093754,7.453,134.13,134.1,7.4543]
[1750685094358,53.40786785,134.14,134.11,7.4539]
[1750685095152,8.09526785,134.12,134.07,2.35]
[1750685095744,7.4542,134.11,134.08,7.4554]
[1750685096351,7.4547,134.1,134.08,7.4554]
[1750685096753,45.95526785,134.1,134.07,7.456]
[1750685096949,45.95526785,134.1,134.04,45.93526785]
[1750685097154,45.95526785,134.1,134.05,7.457]
[1750685097356,7.4553,134.09,134.02,15.27246785]
[1750685097750,7.4553,134.09,134.06,7.4564]
[1750685098161,7.4558,134.08,134.06,7.4564]
[1750685098359,7.4558,134.08,134.05,7.457]
[1750685099266,8.09526785,134.08,134.02,15.27246785]
[1750685099655,15.55096785,134.08,134.05,7.4569]
[1750685100257,8.09526785,134.08,134.01,62.0]
[1750685100452,8.09526785,134.06,133.99,15.25666785]
[1750685100653,45.97526785,134.06,133.99,7.1614]
[1750685100963,7.4576,134.05,134.02,7.4587]
[1750685101161,45.97526785,134.06,133.99,15.25666785]
[1750685101364,7.4573,134.05,133.99,15.25666785]
[1750685101862,7.4573,134.05,134.02,7.4585]
[1750685102051,37.88,134.06,133.99,15.25666785]
[1750685102354,45.97526785,134.06,134.03,7.4583]
[1750685102751,45.97526785,134.06,134.0,8.09526785]
[1750685103155,8.09526785,134.04,133.94,1.29850746]
[1750685103353,8.09526785,134.04,133.95,69.1195]
[1750685103553,8.09526785,134.04,133.99,7.4603]
[1750685103753,7.4587,134.03,133.99,7.4603]
[1750685103961,8.09526785,134.04,133.99,7.4603]
[1750685104663,8.09526785,134.02,133.99,7.4603]
[1750685104865,8.09526785,134.02,133.95,69.1195]
[1750685104866,45.97526785,134.02,133.98,7.461]
[1750685105261,8.09526785,134.0,133.91,643.92]
[1750685105462,7.4609,133.99,133.95,7.4623]
[1750685105759,7.4609,133.99,133.93,8.09526785]
[1750685105966,7.4604,134.0,133.93,8.09526785]
[1750685106158,8.09526785,134.01,133.91,689.89526785]
[1750685106362,8.09526785,134.01,133.95,8.09526785]
[1750685106755,45.97526785,134.01,133.96,8.09526785]
[1750685107360,45.97526785,134.01,133.91,689.89526785]
[1750685107361,8.09526785,133.99,133.91,681.8]
[1750685107561,8.09526785,133.97,133.95,7.4627]
[1750685107965,8.09526785,133.97,133.91,45.97526785]
[1750685108160,8.09526785,133.97,133.91,37.88]
[1750685108568,8.09526785,133.95,133.91,37.88]
[1750685108759,15.55846785,133.95,133.9,7.172]
[1750685109159,7.4634,133.94,133.92,7.4643]
[1750685109461,8.09526785,133.95,133.92,7.4643]
[1750685109661,15.55836785,133.95,133.92,7.4643]
[1750685110058,8.09526785,133.95,133.91,7.4648]
[1750685110263,8.09526785,133.93,133.85,37.9]
[1750685110463,45.99526785,133.93,133.87,8.09526785]
[1750685110764,45.99526785,133.97,133.91,8.09526785]
[1750685111064,37.9,133.97,133.91,8.09526785]
[1750685111269,37.9,133.97,133.92,2.4768]
[1750685111470,8.09526785,133.96,133.92,2.4768]
[1750685111968,15.55786785,133.96,133.92,9.9411]
[1750685112172,37.9,133.97,133.92,2.4768]
[1750685112867,37.9,133.97,133.92,10.57206785]
[1750685113962,37.9,133.97,133.94,8.09526785]
[1750685114273,37.9,133.97,133.93,12.95766785]
[1750685114769,37.9,133.97,133.93,4.8624]
[1750685115363,37.9,133.97,133.94,7.4631]
[1750685115671,37.9,133.97,133.93,4.8624]
[1750685116166,37.9,133.97,133.95,7.4626]
[1750685117275,37.9,133.97,133.96,7.4623]
[1750685117472,46.21526785,134.0,133.94,8.09526785]
[1750685117667,7.4615,133.98,133.95,7.4626]
[1750685118168,38.12,134.0,133.94,8.09526785]
[1750685118374,38.12,134.0,133.96,8.09526785]
[1750685118770,45.5801,134.0,133.96,8.09526785]
[1750685119078,38.12,134.0,133.96,8.09526785]
[1750685119772,38.12,134.03,133.97,8.09526785]
[1750685119973,45.5787,134.03,134.0,7.4601]
[1750685120774,38.12,134.03,134.01,7.4595]
[1750685120974,38.12,134.03,133.97,8.09526785]
[1750685121375,38.12,134.03,134.02,7.459]
[1750685121572,38.12,134.03,134.0,8.09526785]
[1750685121967,38.12,134.03,134.02,7.459]
[1750685122168,7.4576,134.05,134.02,7.459]
[1750685122979,690.1372,134.06,134.03,7.4584]
[1750685123378,682.68,134.06,134.0,8.09526785]
[1750685123575,7.4573,134.05,134.02,7.4586]
[1750685123779,38.12,134.06,134.0,8.09526785]
[1750685123977,45.5772,134.06,134.0,8.09526785]
[1750685124177,38.12,134.06,134.0,8.09526785]
[1750685124477,45.5771,134.06,134.0,8.09526785]
[1750685124977,7.4573,134.05,134.0,8.09526785]
[1750685125178,46.21526785,134.06,134.01,7.459]
[1750685125582,7.4576,134.05,134.0,8.09526785]
[1750685125781,46.21526785,134.06,134.0,8.09526785]
[1750685126583,53.67226785,134.06,134.03,7.4584]
[1750685126777,53.67226785,134.06,134.0,8.09526785]
[1750685126974,45.577,134.06,134.0,8.09526785]
[1750685127178,45.577,134.06,134.02,7.4587]
[1750685127479,7.4575,134.05,134.02,7.4587]
[1750685127980,45.5769,134.06,134.03,7.4583]
[1750685128180,38.12,134.06,134.01,8.09526785]
[1750685128383,7.4577,134.05,134.01,7.459]
[1750685128584,7.4577,134.05,134.0,8.09526785]
[1750685129084,45.577,134.06,134.02,8.09526785]
[1750685129588,38.12,134.06,133.99,4.9006]
[1750685129774,38.12,134.06,134.0,8.09526785]
[1750685130681,7.458,134.04,134.01,7.4592]
[1750685131384,7.4576,134.05,134.02,7.4587]
[1750685131986,45.577,134.06,134.03,7.4581]
[1750685132187,45.577,134.06,134.0,8.09526785]
[1750685132384,38.12,134.06,134.02,8.09526785]
[1750685132695,38.1,134.09,134.04,8.09526785]
[1750685132887,5.93479252,134.1,134.08,7.4556]
[1750685133190,38.1,134.1,134.06,8.09526785]
[1750685133380,38.1,134.1,134.08,7.4553]
[1750685133588,45.5547,134.1,134.06,8.09526785]
[1750685133887,38.1,134.1,134.05,7.4568]
[1750685134187,7.4572,134.06,134.01,8.09526785]
[1750685134381,38.1,134.06,134.01,8.09526785]
[1750685134787,38.1,134.06,134.02,7.4586]
[1750685134788,7.4576,134.05,134.02,7.4586]
[1750685135290,7.4579,134.04,134.01,15.55446785]
[1750685135590,7.4579,134.04,134.01,7.4592]
[1750685136189,8.09526785,134.04,133.98,10.48766785]
[1750685136378,12.42212663,134.05,133.98,2.3924]
[1750685136580,7.4587,134.03,134.0,7.4598]
[1750685137290,12.42212663,134.05,134.01,7.4593]
[1750685137291,7.4582,134.04,134.01,7.4593]
[1750685138386,7.4585,134.03,134.0,7.4599]
[1750685138692,12.42212663,134.05,133.98,2.3924]
[1750685139191,7.4588,134.03,134.0,7.4601]
[1750685139882,7.459,134.02,133.99,7.4604]
[1750685140086,12.42212663,134.03,133.96,50.52212663]
[1750685140280,38.1,134.02,133.96,38.1]
[1750685140484,12.42212663,134.01,133.94,19.58272663]
[1750685140887,19.88212663,134.01,133.94,19.58272663]
[1750685141291,7.46,134.01,133.94,19.58272663]
[1750685141492,7.4601,134.0,133.97,7.4614]
[1750685144186,7.4601,134.0,133.94,19.58272663]
[1750685144187,38.1,134.02,133.96,12.42212663]
[1750685144892,7.4596,134.01,133.98,7.4609]
[1750685145187,7.4596,134.01,133.95,19.35855551]
[1750685145383,45.5592,134.02,133.99,7.4606]
[1750685145585,45.6192,134.02,133.96,6.93642888]
[1750685146289,7.4592,134.02,133.96,6.93642888]
[1750685146690,45.6187,134.03,134.0,7.46]
[1750685146890,38.16,134.03,133.96,6.93642888]
[1750685147193,7.4592,134.02,133.99,7.4602]
[1750685147591,38.16,134.03,133.97,6.93642888]
[1750685147797,7.4592,134.02,133.99,7.4604]
[1750685148796,7.4596,134.01,133.99,7.4604]
[1750685149094,38.16,134.03,133.99,7.4604]
[1750685149095,7.4593,134.02,133.99,7.4604]
[1750685151790,12.42212663,134.02,133.96,6.93642888]
[1750685151990,38.16,134.03,133.96,19.35855551]
[1750685152393,7.459,134.02,133.96,19.35855551]
[1750685152987,7.459,134.02,133.99,7.4603]
[1750685154293,7.4596,134.01,133.99,7.4603]
[1750685154484,7.4596,134.01,133.98,7.4609]
[1750685154895,7.4596,134.01,133.97,6.93642888]
[1750685155097,7.4596,134.01,133.98,7.4611]
[1750685155595,7.4602,134.0,133.97,14.39782888]
[1750685155797,7.4602,134.0,133.97,7.4614]
[1750685155994,7.4602,134.0,133.96,6.93642888]
[1750685156297,7.4602,134.0,133.97,7.4616]
[1750685157387,8.15516066,134.0,133.96,6.93642888]
[1750685157597,8.15516066,134.0,133.93,100.1]
[1750685157598,8.15516066,133.98,133.95,6.93642888]
[1750685157794,46.31516066,133.98,133.94,6.93642888]
[1750685158094,46.31516066,133.98,133.93,6.93642888]
[1750685159093,46.31516066,133.98,133.93,14.40042888]
[1750685159294,46.31516066,133.98,133.93,6.93642888]
[1750685159493,38.16,133.98,133.93,6.93642888]
[1750685159695,7.4621,133.97,133.95,7.4626]
[1750685160395,2.365,134.03,133.94,6.93642888]
[1750685160595,46.31516066,134.02,133.96,6.93642888]
[1750685160799,46.31516066,134.02,133.95,15.09158954]
[1750685161800,7.4623,133.96,133.93,6.93642888]
[1750685161993,8.15516066,133.96,133.93,6.93642888]
[1750685162297,38.16,133.97,133.95,7.4629]
[1750685162497,38.16,133.97,133.93,6.93642888]
[1750685162898,38.16,133.97,133.92,14.40072888]
[1750685163302,7.4632,133.95,133.92,14.40072888]
[1750685163798,7.4632,133.95,133.92,7.4643]
[1750685164905,7.4632,133.95,133.93,7.464]
[1750685165204,7.4632,133.95,133.91,6.93642888]
[1750685165605,7.4635,133.94,133.92,7.4642]
[1750685165902,50.59625633,133.97,133.92,7.4642]
[1750685166102,7.4626,133.96,133.93,7.4637]
[1750685166294,50.59625633,133.97,133.93,7.4637]
[1750685166501,50.59625633,133.97,133.91,6.93642888]
[1750685166701,7.4634,133.94,133.92,7.4642]
[1750685166900,7.4634,133.94,133.91,6.93642888]
[1750685167105,50.59625633,133.97,133.9,6.93642888]
[1750685167406,12.43625633,133.96,133.91,7.4648]
[1750685167704,7.4638,133.94,133.91,7.4648]
[1750685168507,7.4638,133.94,133.92,7.4643]
[1750685168805,7.4631,133.95,133.9,6.93642888]
[1750685169007,7.4631,133.95,133.92,7.4641]
[1750685169508,7.4625,133.96,133.93,7.4637]
[1750685169810,38.16,133.97,133.91,19.37268521]
[1750685170101,7.4626,133.96,133.93,7.4636]
[1750685170498,38.16,133.97,133.94,7.4634]
[1750685171209,45.6221,133.97,133.94,7.4634]
[1750685173802,38.16,133.97,133.92,19.37268521]
[1750685174308,50.93625633,133.99,133.92,19.37268521]
[1750685174608,38.5,133.99,133.93,6.93642888]
[1750685174800,45.9608,133.99,133.96,7.4619]
[1750685175309,38.5,133.99,133.96,7.4619]
[1750685175510,38.5,133.99,133.95,7.4626]
[1750685175511,7.4614,133.98,133.95,7.4626]
[1750685176608,7.4614,133.98,133.93,9.25742888]
[1750685177310,7.4614,133.98,133.95,7.4624]
[1750685177510,45.9609,133.99,133.93,9.25742888]
[1750685177809,38.5,133.99,133.96,7.462]
[1750685178712,7.4616,133.98,133.95,7.4626]
[1750685181314,38.5,133.99,133.96,7.4621]
[1750685181512,38.5,133.99,133.94,6.93642888]
[1750685181711,7.4616,133.98,133.95,7.4625]
[1750685182711,45.9609,133.99,133.96,7.4622]
[1750685183015,7.4609,133.99,133.96,7.4622]
[1750685183211,45.9609,133.99,133.96,7.4622]
[1750685183714,38.5,133.99,133.94,19.37268521]
[1750685183915,38.5,133.99,133.94,21.88518521]
[1750685184218,38.5,133.99,133.97,7.4615]
[1750685184412,38.5,133.99,133.94,17.60500231]
[1750685185016,38.5,133.99,133.97,7.4614]
[1750685188226,38.5,133.99,133.98,7.4612]
[1750685188825,38.5,134.02,134.0,7.4599]
[1750685189027,38.5,134.02,133.98,8.15607343]
[1750685189430,45.9593,134.02,133.98,8.15607343]
[1750685190131,38.5,134.02,134.0,7.4598]
[1750685190328,38.5,134.02,133.98,8.15607343]
[1750685190731,45.9592,134.02,133.99,7.4603]
[1750685191728,46.65607343,134.02,133.97,15.09250231]
[1750685191924,8.15607343,134.0,133.95,6.93642888]
[1750685192125,8.15607343,133.98,133.95,7.4627]
[1750685192325,44.05881321,134.02,133.95,14.39912888]
[1750685192531,8.15607343,133.99,133.95,14.39912888]
[1750685192729,7.4613,133.98,133.95,14.39912888]
[1750685192929,7.4613,133.98,133.95,7.4627]
[1750685193332,15.61707343,133.99,133.96,7.4623]
[1750685193834,7.461,133.99,133.96,7.4623]
[1750685194131,8.15607343,134.0,133.95,15.09250231]
[1750685194331,8.15607343,134.0,133.96,6.93642888]
[1750685194527,8.15607343,134.0,133.95,15.09250231]
[1750685195027,15.61637343,134.0,133.95,15.09250231]
[1750685195233,15.61637343,134.0,133.97,7.4615]
[1750685196232,15.61637343,134.0,133.98,7.4612]
[1750685196437,15.61637343,134.0,133.96,6.93642888]
[1750685196931,38.5,134.02,133.98,6.93642888]
[1750685197138,38.5,134.04,133.99,8.15607343]
[1750685197344,7.46,134.01,133.97,6.93642888]
[1750685197533,8.15607343,134.03,133.97,15.09250231]
[1750685197734,38.5,134.04,133.98,6.93642888]
[1750685197935,44.06882136,134.04,133.99,8.15607343]
[1750685198134,38.5,134.04,133.99,15.09250231]
[1750685198342,38.5,134.04,134.02,7.4589]
[1750685201041,45.958,134.04,134.01,7.4592]
[1750685201337,38.5,134.04,133.99,15.09250231]
[1750685202043,38.5,134.04,134.02,7.4587]
[1750685202632,38.5,134.04,134.03,7.4584]
[1750685202837,682.98,134.07,134.03,8.15607343]
[1750685203236,38.5,134.07,134.03,8.15607343]
[1750685203838,38.5,134.07,134.04,7.4577]
[1750685204245,45.796,134.08,134.05,7.4571]
[1750685205246,7.4562,134.07,134.04,7.4576]
[1750685205642,7.4562,134.07,134.03,8.15607343]
[1750685205946,38.34,134.08,134.04,7.4576]
[1750685206342,38.34,134.08,134.03,8.15607343]
[1750685206543,7.4563,134.07,134.04,7.4575]
[1750685207747,45.7959,134.08,134.05,7.4572]
[1750685207952,38.34,134.08,134.03,8.15607343]
[1750685208152,38.34,134.08,134.03,2.3966]
[1750685208352,38.34,134.08,134.03,10.55267343]
[1750685208856,7.4564,134.07,134.04,7.4576]
[1750685209051,38.34,134.08,134.03,10.55267343]
[1750685209353,7.4568,134.06,134.03,18.01077343]
[1750685211557,7.4568,134.06,134.03,9.8547]
[1750685211857,8.15607343,134.07,134.01,46.47607343]
[1750685212353,8.15607343,134.07,134.0,8.15607343]
[1750685212554,8.15607343,134.05,134.0,8.15607343]
[1750685212753,7.4581,134.04,134.01,7.4595]
[1750685212954,7.4581,134.04,134.0,8.15607343]
[1750685213157,8.15607343,134.05,134.0,8.15607343]
[1750685213357,15.61357343,134.05,134.02,7.4589]
[1750685213654,40.7689,134.08,134.01,8.15607343]
[1750685213655,8.15607343,134.07,134.01,8.15607343]
[1750685213859,38.34,134.08,134.03,8.15607343]
[1750685214555,38.34,134.08,134.05,8.15607343]
[1750685214962,38.34,134.08,134.06,7.4565]
[1750685215460,45.7957,134.08,134.05,15.61307343]
[1750685215648,38.34,134.08,134.03,8.15607343]
[1750685216056,38.34,134.08,134.04,7.4576]
[1750685216757,7.4563,134.07,134.04,7.4576]
[1750685217052,7.4568,134.06,134.03,15.61417343]
[1750685217268,46.49607343,134.08,134.02,8.15607343]
[1750685217755,7.457,134.06,134.03,7.4582]
[1750685218649,7.457,134.06,134.02,8.15607343]
[1750685219655,7.457,134.06,134.04,7.4578]
[1750685220358,7.4564,134.07,134.04,7.4578]
[1750685220655,45.7959,134.08,134.05,7.4571]
[1750685221253,7.4563,134.07,134.04,7.4575]
[1750685221751,7.4568,134.06,134.04,7.4575]
[1750685222448,7.4568,134.06,134.03,7.4581]
[1750685222857,7.4568,134.06,134.04,7.4575]
[1750685223551,7.4563,134.07,134.04,7.4575]
[1750685223859,38.34,134.08,134.04,7.4575]
[1750685224061,7.4567,134.07,134.05,7.4572]
[1750685224265,38.34,134.08,134.04,8.15607343]
[1750685224560,45.796,134.08,134.04,8.15607343]
[1750685225150,7.4564,134.07,134.02,8.15607343]
[1750685225353,46.49607343,134.08,134.02,8.15607343]
[1750685225655,7.4566,134.07,134.04,7.4577]
[1750685226162,7.4568,134.06,134.03,7.4582]
[1750685226462,38.34,134.08,134.02,8.15607343]
[1750685226667,7.4565,134.07,134.04,7.4576]
[1750685226962,38.34,134.08,134.04,8.15607343]
[1750685227361,45.7961,134.08,134.05,7.457]
[1750685228258,7.4562,134.07,134.05,7.457]
[1750685228658,38.34,134.08,134.05,7.4572]
[1750685228858,45.7956,134.08,134.05,7.4572]
[1750685229552,7.4562,134.07,134.05,7.4572]
[1750685229757,7.4562,134.07,134.04,7.4576]
[1750685230152,45.7959,134.08,134.02,8.15607343]
[1750685230354,45.7959,134.08,134.05,7.4573]
[1750685230560,38.34,134.08,134.02,8.15607343]
[1750685230955,7.4566,134.07,134.02,8.15607343]
[1750685231456,38.34,134.08,134.02,8.15607343]
[1750685231654,46.49607343,134.08,134.02,8.15607343]
[1750685232769,7.4569,134.06,134.03,7.4581]
[1750685238178,7.4569,134.06,134.04,7.4577]
[1750685238878,7.4565,134.07,134.04,7.4577]
[1750685240872,45.7958,134.08,134.04,8.15607343]
[1750685241375,38.34,134.08,134.06,7.4564]
[1750685241575,38.34,134.08,134.04,8.15607343]
[1750685241780,38.34,134.08,134.06,8.15607343]
[1750685242081,7.4548,134.1,134.07,7.4558]
[1750685242881,38.08,134.11,134.06,8.15607343]
[1750685244184,38.08,134.11,134.09,7.4551]
[1750685244986,7.4531,134.13,134.1,7.4545]
[1750685245187,13.07735546,134.13,134.1,7.4545]
[1750685245488,7.4531,134.13,134.1,7.4545]
[1750685245686,5.62548001,134.12,134.05,19.74685055]
[1750685245887,16.70538503,134.13,134.05,10.63637343]
[1750685246082,8.15607343,134.11,134.05,10.63637343]
[1750685246386,7.4549,134.1,134.05,10.63637343]
[1750685247088,7.4551,134.09,134.06,7.4564]
[1750685247787,7.4548,134.1,134.06,7.4564]
[1750685250088,7.4548,134.1,134.07,7.4562]
[1750685252090,8.15607343,134.13,134.06,8.15607343]
[1750685252490,7.4537,134.12,134.09,7.455]
[1750685252788,682.62,134.14,134.1,8.15607343]
[1750685253185,682.62,134.14,134.08,8.15607343]
[1750685253692,7.4539,134.12,134.09,7.4548]
[1750685254184,7.4539,134.12,134.08,8.15607343]
[1750685254185,7.4539,134.12,134.08,15.61127343]
[1750685254395,7.4539,134.12,134.08,8.15607343]
[1750685254890,7.4539,134.12,134.09,7.455]
[1750685255391,7.4532,134.13,134.08,8.15607343]
[1750685255589,7.4532,134.13,134.07,40.4006]
[1750685255786,682.62,134.14,134.09,8.15607343]
[1750685255986,7.4531,134.13,134.1,7.4544]
[1750685256589,7.4534,134.12,134.09,15.61087343]
[1750685258193,7.4532,134.13,134.1,7.4544]
[1750685258794,7.4529,134.13,134.1,7.4544]
[1750685259591,7.4538,134.12,134.09,7.4547]
[1750685259984,7.4545,134.1,134.08,15.61137343]
[1750685260191,8.15607343,134.11,134.04,2.3163]
[1750685260387,8.15607343,134.05,133.95,38.06]
[1750685260587,8.15607343,134.02,133.95,8.15607343]
[1750685260787,8.15607343,134.0,133.92,45.1363]
[1750685260992,46.21607343,134.0,133.93,8.15607343]
[1750685261189,7.4616,133.98,133.93,8.15607343]
[1750685261391,46.21607343,134.0,133.93,8.15607343]
[1750685261695,7.4613,133.98,133.95,7.4625]
[1750685262098,7.4613,133.98,133.93,8.15607343]
[1750685262496,46.21607343,134.0,133.92,42.7511]
[1750685262697,8.15607343,133.98,133.93,7.4637]
[1750685262997,8.15607343,133.98,133.92,42.7511]
[1750685263495,8.15607343,133.98,133.93,7.464]
[1750685263496,15.61757343,133.98,133.93,7.464]
[1750685263696,8.15607343,133.98,133.92,4.6911]
[1750685263997,38.06,134.0,133.94,7.4634]
[1750685264298,15.61757343,133.98,133.94,7.4634]
[1750685264593,8.15607343,133.98,133.95,7.4628]
[1750685265394,8.15607343,133.98,133.96,7.4623]
[1750685265696,38.06,134.0,133.92,4.6911]
[1750685265897,8.15607343,133.99,133.92,4.6911]
[1750685266201,8.15607343,133.99,133.97,7.4617]
[1750685266392,8.15607343,133.99,133.92,4.6911]
[1750685266894,8.15607343,133.99,133.95,7.4625]
[1750685267196,7.4613,133.98,133.95,7.4625]
[1750685269792,15.61697343,133.99,133.96,7.4623]
[1750685270096,8.15607343,133.99,133.92,12.84717343]
[1750685270694,38.06,134.0,133.94,8.15607343]
[1750685271191,38.06,134.0,133.97,7.4614]
[1750685271397,38.06,134.0,133.94,8.15607343]